bitfinex/quotes_BTCUSD_20240811
["timestamp","ask_amount","ask_price","bid_price","bid_amount"]
[1723346866905,0.0828318,61464.0,61451.0,0.325458]
[1723346867029,0.0828318,61464.0,61454.0,0.00444243]
[1723346867216,0.0828318,61464.0,61455.0,0.162718]
[1723346867411,0.0828318,61464.0,61448.0,0.00444243]
[1723346867615,0.0828318,61464.0,61445.0,0.00444243]
[1723346867823,0.0828318,61464.0,61449.0,0.00444243]
[1723346868046,0.08184646,61455.0,61429.0,0.05637455]
[1723346868260,0.0774,61456.0,61440.0,0.00444243]
[1723346868471,0.0774,61456.0,61434.0,0.16381492]
[1723346868472,0.0774,61452.0,61434.0,0.16381492]
[1723346868685,0.0774,61452.0,61443.0,0.00444243]
[1723346869316,0.00764295,61451.0,61445.0,0.162746]
[1723346869534,0.00764295,61451.0,61447.0,0.00444243]
[1723346869914,0.00764295,61451.0,61439.0,0.325525]
[1723346869915,0.00764295,61451.0,61443.0,0.00444243]
[1723346870041,0.00764295,61451.0,61450.0,0.16717543]
[1723346870238,0.00764295,61451.0,61439.0,0.325525]
[1723346870239,0.0774,61452.0,61451.0,0.16717343]
[1723346870447,0.0774,61452.0,61451.0,0.00444243]
[1723346870646,0.08504013,61452.0,61451.0,0.00444243]
[1723346871310,0.08462975,61452.0,61451.0,0.00444243]
[1723346872042,0.08462975,61452.0,61451.0,0.16717343]
[1723346872310,0.07698962,61452.0,61451.0,0.16717343]
[1723346872897,0.07698962,61452.0,61451.0,0.00444243]
[1723346873110,0.08463052,61452.0,61451.0,0.00444243]
[1723346873435,0.08463052,61452.0,61451.0,0.16717343]
[1723346873837,0.07698962,61452.0,61451.0,0.16717343]
[1723346874440,0.07698962,61452.0,61451.0,0.49263543]
[1723346874660,0.0636,61458.0,61457.0,0.16715743]
[1723346875139,0.0636,61458.0,61457.0,0.00444243]
[1723346875978,0.0636,61458.0,61454.0,0.00444243]
[1723346876570,0.0636,61458.0,61456.0,0.00444243]
[1723346876767,0.0636,61458.0,61454.0,0.162722]
[1723346876768,0.0636,61458.0,61454.0,0.00444243]
[1723346877948,0.325437,61456.0,61443.0,0.00444243]
[1723346878148,0.325437,61456.0,61438.0,0.325527]
[1723346878149,0.0774,61455.0,61444.0,0.00444243]
[1723346878283,0.0774,61455.0,61444.0,0.32994143]
[1723346878632,0.162726,61453.0,61444.0,0.00444243]
[1723346878859,0.0831,61450.0,61444.0,0.00444243]
[1723346879062,0.0831,61450.0,61441.0,0.162756]
[1723346879211,0.0831,61450.0,61442.0,0.00444243]
[1723346879405,0.162737,61449.0,61444.0,0.00444243]
[1723346879596,0.650892,61455.0,61444.0,0.00444243]
[1723346879597,0.311828,61452.0,61444.0,0.00444243]
[1723346879779,0.1491,61452.0,61449.0,0.00444243]
[1723346879979,0.1491,61452.0,61448.0,0.00444243]
[1723346880516,0.1491,61452.0,61451.0,0.00444243]
[1723346880723,0.1491,61452.0,61448.0,0.00444243]
[1723346881495,0.1491,61452.0,61445.0,0.162746]
[1723346881496,0.1491,61452.0,61451.0,0.00444243]
[1723346882323,0.1491,61452.0,61444.0,0.00444243]
[1723346882531,0.1491,61452.0,61437.0,0.162768]
[1723346882756,0.1491,61452.0,61425.0,0.0806]
[1723346882757,0.066,61440.0,61435.0,0.00444243]
[1723346882956,0.066,61440.0,61439.0,0.16720543]
[1723346883105,0.0831,61441.0,61440.0,0.16720243]
[1723346883323,0.0831,61441.0,61440.0,0.49272243]
[1723346883523,0.1491,61453.0,61448.0,0.00444243]
[1723346883763,0.1491,61453.0,61440.0,0.16381492]
[1723346883764,0.1491,61453.0,61452.0,0.00444243]
[1723346884039,0.1491,61453.0,61449.0,0.00444243]
[1723346884244,0.311826,61453.0,61450.0,0.00444243]
[1723346884412,0.311826,61453.0,61444.0,0.001]
[1723346884413,0.637341,61445.0,61444.0,0.001]
[1723346884599,1.12664992,61445.0,61444.0,0.001]
[1723346884808,0.80671349,61445.0,61444.0,0.001]
[1723346885010,0.80115592,61445.0,61444.0,0.001]
[1723346885388,0.41291492,61445.0,61431.0,0.00444243]
[1723346885516,0.162768,61437.0,61431.0,0.00444243]
[1723346885720,0.325523,61440.0,61431.0,0.00444243]
[1723346885947,0.0831,61442.0,61435.0,0.00444243]
[1723346886144,0.162761,61440.0,61437.0,0.00444243]
[1723346886361,0.0831,61442.0,61437.0,0.00444243]
[1723346886362,0.162763,61439.0,61437.0,0.00444243]
[1723346886603,0.162762,61440.0,61438.0,0.00444243]
[1723346886763,0.325518,61441.0,61435.0,0.00444243]
[1723346886979,0.162768,61437.0,61433.0,0.00444243]
[1723346887182,0.325518,61441.0,61430.0,0.162786]
[1723346887183,0.162763,61439.0,61430.0,0.162786]
[1723346887382,0.325518,61441.0,61431.0,0.00444243]
[1723346887588,0.0831,61442.0,61431.0,0.00444243]
[1723346887813,0.162766,61438.0,61431.0,0.00444243]
[1723346887988,0.162766,61438.0,61430.0,0.16722743]
[1723346888193,0.0831,61442.0,61428.0,0.00444243]
[1723346888507,0.1491,61433.0,61428.0,0.00444243]
[1723346888712,0.1491,61433.0,61430.0,0.00444243]
[1723346888890,0.1491,61433.0,61424.0,0.00444243]
[1723346889092,0.1491,61433.0,61421.0,0.32562]
[1723346889093,0.1491,61433.0,61428.0,0.00444243]
[1723346889296,0.1491,61433.0,61431.0,0.00444243]
[1723346889740,0.1491,61433.0,61428.0,0.001]
[1723346889741,0.162783,61432.0,61428.0,0.001]
[1723346890071,0.162789,61429.0,61428.0,0.001]
[1723346890207,0.474659,61433.0,61421.0,0.16281]
[1723346890382,0.474659,61433.0,61417.0,0.00444243]
[1723346890383,0.1422,61430.0,61417.0,0.00444243]
[1723346890583,0.0831,61424.0,61416.0,0.162823]
[1723346890781,0.0831,61424.0,61411.0,0.325672]
[1723346890782,0.162809,61422.0,61411.0,0.325672]
[1723346890992,0.162806,61423.0,61414.0,0.162827]
[1723346891194,0.1491,61422.0,61405.0,0.08184646]
[1723346891389,0.1491,61422.0,61413.0,0.00444243]
[1723346891634,0.162812,61421.0,61414.0,0.16726943]
[1723346891832,0.1491,61422.0,61415.0,0.00444243]
[1723346892044,0.162819,61418.0,61414.0,0.00444243]
[1723346892243,0.162819,61418.0,61407.0,0.325694]
[1723346892244,0.325632,61419.0,61411.0,0.00444243]
[1723346892445,0.162833,61413.0,61407.0,0.00444243]
[1723346892642,0.0831,61417.0,61405.0,0.00444243]
[1723346892881,0.325649,61416.0,61407.0,0.00444243]
[1723346893298,0.0831,61404.0,61393.0,0.325768]
[1723346893516,0.0831,61404.0,61402.0,0.00444243]
[1723346893703,0.0831,61404.0,61403.0,0.16730043]
[1723346893878,0.0831,61404.0,61395.0,0.325757]
[1723346893879,0.0831,61411.0,61408.0,0.00444243]
[1723346894081,0.162845,61408.0,61407.0,0.00444243]
[1723346894280,0.162841,61410.0,61404.0,0.00444243]
[1723346894483,0.0831,61411.0,61406.0,0.00444243]
[1723346894821,0.0831,61411.0,61408.0,0.00444243]
[1723346894947,0.245938,61411.0,61408.0,0.00444243]
[1723346895153,0.245938,61411.0,61407.0,0.001]
[1723346895154,0.0831,61411.0,61410.0,0.00444243]
[1723346895792,0.0901,61411.0,61410.0,0.00444243]
[1723346895967,0.0901,61411.0,61407.0,0.162845]
[1723346896168,0.0901,61411.0,61410.0,0.00444243]
[1723346896560,0.162854,61405.0,61401.0,0.00444243]
[1723346896756,0.32571,61405.0,61396.0,0.00444243]
[1723346897048,0.0831,61404.0,61403.0,0.00444243]
[1723346897278,0.0831,61404.0,61403.0,0.16730043]
[1723346897571,0.245955,61404.0,61403.0,0.00444243]
[1723346897713,0.0831,61404.0,61403.0,0.00444243]
[1723346897915,0.0831,61404.0,61401.0,0.00444243]
[1723346898254,0.066,61403.0,61398.0,0.00444243]
[1723346898430,0.066,61403.0,61401.0,0.00444243]
[1723346898633,0.066,61403.0,61391.0,0.0001]
[1723346898634,0.162887,61392.0,61391.0,0.0001]
[1723346898836,0.076,61392.0,61391.0,0.0001]
[1723346899108,0.076,61392.0,61391.0,0.00454243]
[1723346900016,0.076,61392.0,61391.0,0.0051]
[1723346900596,0.238887,61392.0,61391.0,0.0051]
[1723346901411,0.238887,61392.0,61391.0,0.0001]
[1723346901565,0.245887,61392.0,61391.0,0.0011]
[1723346901972,0.083,61392.0,61391.0,0.00554243]
[1723346902176,0.076,61392.0,61391.0,0.00454243]
[1723346902413,0.162875,61397.0,61391.0,0.00454243]
[1723346902575,0.238875,61397.0,61396.0,0.00444243]
[1723346903298,0.076,61397.0,61394.0,0.00444243]
[1723346903480,0.162877,61396.0,61395.0,0.00444243]
[1723346903781,0.162879,61395.0,61394.0,0.00444243]
[1723346904195,0.076,61397.0,61396.0,0.00444243]
[1723346904623,0.238874,61397.0,61396.0,0.00444243]
[1723346904812,0.247874,61397.0,61396.0,0.00444243]
[1723346905011,0.325754,61396.0,61394.0,0.00444243]
[1723346905160,0.162879,61395.0,61394.0,0.00444243]
[1723346906593,0.171879,61395.0,61394.0,0.00544243]
[1723346906763,0.009,61395.0,61394.0,0.00544243]
[1723346907174,0.171879,61395.0,61394.0,0.00544243]
[1723346907379,0.883738,61395.0,61394.0,0.001]
[1723346907601,1.635256,61395.0,61394.0,0.001]
[1723346907728,0.162887,61392.0,61391.0,0.0001]
[1723346908085,0.95597728,61392.0,61391.0,0.0001]
[1723346908227,1.38175228,61392.0,61391.0,0.0001]
[1723346908420,1.316212,61392.0,61391.0,0.0001]
[1723346908670,0.990437,61392.0,61391.0,0.0001]
[1723346908843,1.730437,61392.0,61391.0,0.0001]
[1723346909060,1.737437,61392.0,61391.0,0.0011]
[1723346910750,1.411662,61392.0,61391.0,0.00554243]
[1723346911470,0.747,61392.0,61391.0,0.00554243]
[1723346912264,0.909887,61392.0,61391.0,0.00554243]
[1723346912713,0.909887,61392.0,61391.0,0.0011]
[1723346912915,0.747,61392.0,61391.0,0.0011]
[1723346913115,0.747,61392.0,61391.0,0.00554243]
[1723346913297,1.561437,61392.0,61391.0,0.0011]
[1723346913496,0.909887,61392.0,61391.0,0.0011]
[1723346913684,1.235662,61392.0,61391.0,0.0011]
[1723346915565,2.31417662,61392.0,61391.0,0.0011]
[1723346915763,2.61357662,61392.0,61391.0,0.0011]
[1723346916391,2.44942692,61392.0,61391.0,0.0011]
[1723346916642,2.51052692,61392.0,61391.0,0.0011]
[1723346917048,2.51608449,61392.0,61391.0,0.0011]
[1723346917253,2.51052692,61392.0,61391.0,0.0011]
[1723346918133,2.51052692,61392.0,61391.0,0.0001]
[1723346918134,2.50352692,61392.0,61391.0,0.0001]
[1723346918449,2.51752692,61392.0,61391.0,0.0011]
[1723346918729,1.292287,61392.0,61391.0,0.00554243]
[1723346918882,1.292287,61392.0,61391.0,0.0001]
[1723346918883,1.604062,61392.0,61391.0,0.0001]
[1723346919089,1.929837,61392.0,61391.0,0.0001]
[1723346919288,1.943837,61392.0,61391.0,0.0011]
[1723346919673,1.618062,61392.0,61391.0,0.0011]
[1723346919873,1.604062,61392.0,61391.0,0.00454243]
[1723346920111,1.604062,61392.0,61391.0,0.0001]
[1723346920690,0.878062,61392.0,61391.0,0.0001]
[1723346921439,1.203837,61392.0,61391.0,0.0001]
[1723346922858,1.203837,61392.0,61391.0,0.0010141]
[1723346925147,0.878062,61392.0,61391.0,0.0010141]
[1723346925779,0.552287,61392.0,61391.0,0.00545653]
[1723346925983,0.552287,61392.0,61391.0,0.0010141]
[1723346926185,0.878062,61392.0,61391.0,0.0010141]
[1723346927151,0.3894,61392.0,61391.0,0.00545653]
[1723346927396,0.552287,61392.0,61391.0,0.00545653]
[1723346928127,0.878062,61392.0,61391.0,0.00545653]
[1723346928268,0.552287,61392.0,61391.0,0.00545653]
[1723346928665,0.552287,61392.0,61391.0,0.0010141]
[1723346928863,0.3894,61392.0,61391.0,0.0010141]
[1723346929088,0.552287,61392.0,61391.0,0.00545653]
[1723346929317,0.878062,61392.0,61391.0,0.0010141]
[1723346930522,0.552287,61392.0,61391.0,0.00545653]
[1723346930747,0.552287,61392.0,61391.0,0.0010141]
[1723346931720,0.878062,61392.0,61391.0,0.0010141]
[1723346931920,0.878062,61392.0,61391.0,0.00545653]
[1723346932116,0.878062,61392.0,61391.0,0.0010141]
[1723346932337,0.552287,61392.0,61391.0,0.00545653]
[1723346932673,0.552287,61392.0,61391.0,0.0010141]
[1723346933238,0.552287,61392.0,61391.0,0.00545653]
[1723346934007,0.878062,61392.0,61391.0,0.0010141]
[1723346934210,0.864062,61392.0,61391.0,0.0010141]
[1723346935222,0.552287,61392.0,61391.0,0.00645653]
[1723346935621,0.864062,61392.0,61391.0,0.0010141]
[1723346936040,0.870062,61392.0,61391.0,0.0020141]
[1723346936607,1.995837,61392.0,61391.0,0.0020141]
[1723346936798,1.195837,61392.0,61391.0,0.0020141]
[1723346937215,2.035837,61392.0,61391.0,0.0020141]
[1723346937511,1.195837,61392.0,61391.0,0.0020141]
[1723346937727,2.005837,61392.0,61391.0,0.0020141]
[1723346937930,0.870062,61392.0,61391.0,0.0020141]
[1723346938056,1.690062,61392.0,61391.0,0.0020141]
[1723346938473,1.740062,61392.0,61391.0,0.0020141]
[1723346940118,2.52542692,61392.0,61391.0,0.0020141]
[1723346940319,2.19965192,61392.0,61391.0,0.0020141]
[1723346940539,1.03387692,61392.0,61391.0,0.0020141]
[1723346940749,0.976,61392.0,61391.0,0.00645653]
[1723346940979,0.006,61392.0,61391.0,0.16934653]
[1723346941164,0.006,61392.0,61391.0,0.00645653]
[1723346941759,0.006,61392.0,61391.0,1.38680145]
[1723346941984,0.006,61392.0,61391.0,1.58418954]
[1723346942166,0.006,61392.0,61391.0,2.07657036]
[1723346942340,0.006,61392.0,61391.0,2.01996954]
[1723346942548,0.006,61392.0,61391.0,2.48257817]
[1723346942816,0.006,61392.0,61391.0,2.09675165]
[1723346942992,0.006,61392.0,61391.0,2.50250469]
[1723346943287,0.006,61392.0,61391.0,2.06293398]
[1723346943495,0.49107874,61413.0,61391.0,2.06293398]
[1723346943496,0.49107874,61413.0,61412.0,0.14284243]
[1723346943936,0.162822,61417.0,61416.0,0.00444243]
[1723346944554,0.1,61417.0,61416.0,0.16726643]
[1723346944746,0.1,61417.0,61412.0,0.1394]
[1723346944747,0.4713,61420.0,61419.0,0.00444243]
[1723346944949,0.4713,61420.0,61419.0,0.16725843]
[1723346945168,0.4713,61420.0,61419.0,0.00444243]
[1723346945950,0.4713,61420.0,61419.0,0.16725843]
[1723346946468,0.4713,61420.0,61419.0,0.00444243]
[1723346946871,0.325586,61428.0,61423.0,0.00444243]
[1723346947189,0.262794,61427.0,61426.0,0.00444243]
[1723346948389,0.162797,61426.0,61425.0,0.00444243]
[1723346948617,0.262797,61426.0,61425.0,0.00444243]
[1723346948811,0.1,61426.0,61425.0,0.00444243]
[1723346949014,0.1994,61435.0,61431.0,0.00444243]
[1723346949212,0.162786,61430.0,61429.0,0.00444243]
[1723346949492,0.162786,61430.0,61426.0,0.001]
[1723346949493,0.1,61430.0,61426.0,0.001]
[1723346949702,0.325557,61433.0,61426.0,0.001]
[1723346949703,0.162794,61427.0,61426.0,0.001]
[1723346949917,0.488383,61427.0,61426.0,0.001]
[1723346950090,0.813972,61427.0,61426.0,0.001]
[1723346950319,0.488383,61427.0,61426.0,0.001]
[1723346950724,0.162802,61424.0,61423.0,0.00444243]
[1723346950852,0.488407,61424.0,61423.0,0.00444243]
[1723346951661,0.162802,61424.0,61423.0,0.00444243]
[1723346951960,0.3747,61429.0,61423.0,0.00444243]
[1723346951961,0.262789,61429.0,61428.0,0.00444243]
[1723346952541,0.588368,61429.0,61428.0,0.00444243]
[1723346952741,0.1,61429.0,61428.0,0.00444243]
[1723346952948,0.162794,61427.0,61425.0,0.00444243]
[1723346953173,0.162788,61430.0,61424.0,0.1384]
[1723346953379,0.1,61429.0,61428.0,0.00444243]
[1723346953579,0.262789,61429.0,61428.0,0.00444243]
[1723346953818,0.276789,61429.0,61428.0,0.00544243]
[1723346954076,0.114,61429.0,61428.0,0.00544243]
[1723346954297,0.1,61429.0,61428.0,0.00444243]
[1723346954473,0.162789,61429.0,61428.0,0.00444243]
[1723346954681,0.268789,61429.0,61428.0,0.00544243]
[1723346956320,0.594368,61429.0,61428.0,0.001]
[1723346956764,1.194647,61429.0,61428.0,0.001]
[1723346957763,1.520226,61429.0,61428.0,0.001]
[1723346957999,1.581326,61429.0,61428.0,0.001]
[1723346958427,1.74514092,61429.0,61428.0,0.001]
[1723346958634,2.52514092,61429.0,61428.0,0.001]
[1723346958806,2.53069849,61429.0,61428.0,0.001]
[1723346958963,2.52514092,61429.0,61428.0,0.001]
[1723346959164,2.46514092,61429.0,61428.0,0.001]
[1723346959419,2.41514092,61429.0,61428.0,0.001]
[1723346959628,2.41514092,61429.0,61416.0,0.00444243]
[1723346959629,0.162821,61417.0,61416.0,0.00444243]
[1723346960943,0.489463,61417.0,61416.0,0.01144243]
[1723346961338,0.488463,61417.0,61416.0,0.00444243]
[1723346961897,0.325624,61421.0,61416.0,0.00444243]
[1723346962092,0.325624,61421.0,61411.0,0.0763]
[1723346962093,0.16282,61418.0,61417.0,0.00444243]
[1723346962499,0.488377,61428.0,61427.0,0.00444243]
[1723346962707,0.162792,61428.0,61427.0,0.00444243]
[1723346962886,0.488376,61428.0,61427.0,0.00444243]
[1723346963513,0.162792,61428.0,61427.0,0.00444243]
[1723346963713,0.162792,61428.0,61427.0,0.00544243]
[1723346963714,0.173792,61428.0,61427.0,0.00544243]
[1723346963932,0.499376,61428.0,61427.0,0.00544243]
[1723346964095,0.173792,61428.0,61427.0,0.00544243]
[1723346964302,0.162805,61423.0,61422.0,0.15304243]
[1723346964967,0.336585,61428.0,61427.0,0.00444243]
[1723346965168,0.499377,61428.0,61427.0,0.00444243]
[1723346965806,0.488377,61428.0,61427.0,0.00444243]
[1723346967046,0.162798,61426.0,61425.0,0.00444243]
[1723346967233,0.488393,61426.0,61425.0,0.00444243]
[1723346968041,0.813988,61426.0,61425.0,0.00444243]
[1723346968261,0.162802,61424.0,61423.0,0.00444243]
[1723346968380,0.162805,61423.0,61422.0,0.00444243]
[1723346968576,0.488424,61422.0,61421.0,0.00444243]
[1723346968790,0.162812,61421.0,61419.0,0.00444243]
[1723346969063,0.488433,61421.0,61420.0,0.00444243]
[1723346969255,0.488439,61420.0,61419.0,0.00444243]
[1723346969461,0.814065,61420.0,61419.0,0.00444243]
[1723346969761,0.488439,61420.0,61419.0,0.00444243]
[1723346970996,0.490439,61420.0,61419.0,0.00444243]
[1723346971205,0.002,61420.0,61419.0,0.00444243]
[1723346971400,0.164813,61420.0,61419.0,0.00444243]
[1723346971646,0.490439,61420.0,61419.0,0.00444243]
[1723346972423,1.013165,61420.0,61419.0,0.00444243]
[1723346972754,1.015165,61420.0,61419.0,0.00444243]
[1723346973297,1.013165,61420.0,61419.0,0.00444243]
[1723346973456,1.015165,61420.0,61419.0,0.00444243]
[1723346974085,0.488487,61414.0,61413.0,0.00444243]
[1723346974295,0.488518,61410.0,61409.0,0.00444243]
[1723346974493,0.488542,61407.0,61406.0,0.00444243]
[1723346974862,0.162847,61407.0,61406.0,0.00444243]
[1723346975346,0.162841,61410.0,61409.0,0.00444243]
[1723346975620,0.48852,61410.0,61409.0,0.00444243]
[1723346976976,0.327679,61410.0,61406.0,0.0831]
[1723346977254,0.327679,61410.0,61407.0,0.00444243]
[1723346977255,0.162846,61408.0,61407.0,0.00444243]
[1723346977994,0.002,61410.0,61407.0,0.00444243]
[1723346978198,0.162844,61409.0,61407.0,0.00444243]
[1723346978634,0.002,61410.0,61409.0,0.00444243]
[1723346978838,0.1,61414.0,61413.0,0.00444243]
[1723346979043,0.262829,61414.0,61413.0,0.00444243]
[1723346980077,0.588487,61414.0,61413.0,0.00444243]
[1723346980272,0.262829,61414.0,61413.0,0.00444243]
[1723346980474,0.588487,61414.0,61413.0,0.00444243]
[1723346980680,0.267829,61414.0,61413.0,0.00444243]
[1723346981529,0.593487,61414.0,61413.0,0.00444243]
[1723346981939,0.162837,61412.0,61411.0,0.00444243]
[1723346982208,0.425658,61414.0,61407.0,0.2284611]
[1723346982374,0.266829,61414.0,61413.0,0.00444243]
[1723346982570,0.592487,61414.0,61413.0,0.00444243]
[1723346982797,0.588487,61414.0,61413.0,0.00444243]
[1723346982976,0.262829,61414.0,61413.0,0.00444243]
[1723346983175,0.1,61414.0,61413.0,0.00444243]
[1723346983371,0.262829,61414.0,61413.0,0.00444243]
[1723346983616,0.162825,61416.0,61415.0,0.00444243]
[1723346984331,0.162825,61416.0,61407.0,0.0656141]
[1723346984332,0.162819,61418.0,61417.0,0.00444243]
[1723346984686,0.162809,61422.0,61421.0,0.00444243]
[1723346984865,0.1,61424.0,61423.0,0.00444243]
[1723346984866,0.262802,61424.0,61423.0,0.00444243]
[1723346985364,0.588407,61424.0,61423.0,0.00444243]
[1723346985568,0.262802,61424.0,61423.0,0.00444243]
[1723346985769,0.162802,61424.0,61423.0,0.00444243]
[1723346985994,0.262802,61424.0,61423.0,0.00444243]
[1723346986388,0.598407,61424.0,61423.0,0.00544243]
[1723346986795,0.272802,61424.0,61423.0,0.00544243]
[1723346986945,0.11,61424.0,61423.0,0.00544243]
[1723346987160,0.272802,61424.0,61423.0,0.00544243]
[1723346987347,0.262802,61424.0,61423.0,0.00444243]
[1723346987741,0.588407,61424.0,61423.0,0.00444243]
[1723346988564,0.262802,61424.0,61423.0,0.00444243]
[1723346988964,0.1,61424.0,61423.0,0.00444243]
[1723346989192,0.63713881,61426.0,61425.0,0.00444243]
[1723346989620,0.588392,61426.0,61425.0,0.00444243]
[1723346990229,0.262797,61426.0,61425.0,0.00444243]
[1723346990471,0.588392,61426.0,61425.0,0.00444243]
[1723346990645,0.63713881,61426.0,61425.0,0.00444243]
[1723346990792,0.64213881,61426.0,61425.0,0.00444243]
[1723346992596,0.63713881,61426.0,61425.0,0.00444243]
[1723346992982,0.64213881,61426.0,61425.0,0.00444243]
[1723346993727,0.593392,61426.0,61425.0,0.00444243]
[1723346993940,0.588392,61426.0,61425.0,0.00444243]
[1723346994146,0.592392,61426.0,61425.0,0.00444243]
[1723346994315,0.3155797,61426.0,61425.0,0.00444243]
[1723346994681,0.266797,61426.0,61425.0,0.00444243]
[1723346994881,0.6411747,61426.0,61425.0,0.00444243]
[1723346995076,0.3155797,61426.0,61425.0,0.00444243]
[1723346995277,0.6411747,61426.0,61425.0,0.00444243]
[1723346995702,0.592392,61426.0,61425.0,0.00444243]
[1723346995904,0.004,61426.0,61425.0,0.00444243]
[1723346996106,0.004,61426.0,61425.0,1.45135735]
[1723346996759,0.004,61426.0,61425.0,0.44593899]
[1723346996978,0.162782,61432.0,61431.0,0.00444243]
[1723346997187,0.24798402,61438.0,61432.0,0.00444243]
[1723346997493,0.325529,61439.0,61425.0,0.55094146]
[1723346997494,0.162773,61435.0,61434.0,0.00444243]
[1723346997725,0.162778,61433.0,61432.0,0.00444243]
[1723346998144,0.162778,61433.0,61426.0,0.162796]
[1723346998145,0.0751,61433.0,61431.0,0.00444243]
[1723346998331,0.488344,61432.0,61431.0,0.00444243]
[1723346998736,0.488352,61431.0,61430.0,0.00444243]
[1723346998938,1.07382,61431.0,61430.0,0.00444243]
[1723346999138,0.488407,61424.0,61423.0,0.0009141]
[1723346999442,0.488383,61427.0,61426.0,0.00444243]
[1723347000164,0.1628,61425.0,61424.0,0.00444243]
[1723347000357,0.4884,61425.0,61424.0,0.00444243]
[1723347001017,0.1628,61425.0,61424.0,0.00444243]
[1723347001430,0.4884,61425.0,61424.0,0.00444243]
[1723347001636,0.488407,61424.0,61423.0,0.0009141]
[1723347001836,1.216917,61424.0,61423.0,0.0009141]
[1723347002035,1.23928133,61424.0,61423.0,0.0009141]
[1723347002258,1.190512,61424.0,61423.0,0.0009141]
[1723347002457,1.263666,61424.0,61423.0,0.0009141]
[1723347002660,1.80185525,61424.0,61423.0,0.0009141]
[1723347003187,1.80187613,61424.0,61423.0,0.0009141]
[1723347003320,3.03294419,61424.0,61423.0,0.0019141]
[1723347003520,3.0715237,61424.0,61423.0,0.0019141]
[1723347003840,2.88481643,61424.0,61423.0,0.0009141]
[1723347004244,1.75463192,61424.0,61423.0,0.0019141]
[1723347004516,1.75463192,61424.0,61423.0,0.00635653]
[1723347004979,0.602407,61424.0,61423.0,0.00635653]
[1723347005157,0.014,61424.0,61423.0,0.07285653]
[1723347005357,0.176802,61424.0,61423.0,0.00635653]
[1723347005580,0.488407,61424.0,61423.0,0.00535653]
[1723347005916,0.502407,61424.0,61423.0,0.00635653]
[1723347006127,0.828012,61424.0,61423.0,0.00635653]
[1723347006331,0.814012,61424.0,61423.0,0.00535653]
[1723347006715,0.822012,61424.0,61423.0,0.00635653]
[1723347008659,0.814012,61424.0,61423.0,0.0009141]
[1723347009237,0.823012,61424.0,61423.0,0.0019141]
[1723347009410,1.64963192,61424.0,61423.0,0.0019141]
[1723347009617,1.78939932,61424.0,61423.0,0.0009141]
[1723347009822,1.74063192,61424.0,61423.0,0.0009141]
[1723347010042,1.74463192,61424.0,61423.0,0.00535653]
[1723347010249,1.79340248,61424.0,61423.0,0.00535653]
[1723347010584,0.63717756,61424.0,61423.0,0.00535653]
[1723347010722,0.488407,61424.0,61423.0,0.00535653]
[1723347012045,0.494407,61424.0,61423.0,0.00635653]
[1723347012281,0.168802,61424.0,61423.0,0.00635653]
[1723347012546,0.162802,61424.0,61423.0,0.00535653]
[1723347012750,0.166802,61424.0,61423.0,0.00535653]
[1723347013397,0.492407,61424.0,61423.0,0.00535653]
[1723347013544,0.488407,61424.0,61423.0,0.00535653]
[1723347013746,0.491407,61424.0,61423.0,0.00535653]
[1723347013946,0.894312,61424.0,61423.0,0.00535653]
[1723347014130,0.491407,61424.0,61423.0,0.00535653]
[1723347014536,0.817012,61424.0,61423.0,0.00535653]
[1723347014761,0.817012,61424.0,61423.0,0.0009141]
[1723347014960,0.591407,61424.0,61423.0,0.00535653]
[1723347015166,0.103,61424.0,61423.0,0.08425653]
[1723347015408,0.265802,61424.0,61423.0,0.00535653]
[1723347015573,0.914012,61424.0,61423.0,0.00535653]
[1723347016119,0.917012,61424.0,61423.0,0.00535653]
[1723347016319,0.914012,61424.0,61423.0,0.00535653]
[1723347016727,0.915012,61424.0,61423.0,0.00535653]
[1723347017302,0.96378256,61424.0,61423.0,0.00535653]
[1723347017501,0.915012,61424.0,61423.0,0.00535653]
[1723347017772,0.92266588,61424.0,61423.0,0.00535653]
[1723347020858,0.59706088,61424.0,61423.0,0.00535653]
[1723347021053,0.00865388,61424.0,61423.0,0.00535653]
[1723347021256,0.00865388,61424.0,61423.0,0.08735653]
[1723347021655,0.17145588,61424.0,61423.0,0.08735653]
[1723347022435,0.00865388,61424.0,61423.0,0.08735653]
[1723347023162,0.00865388,61424.0,61423.0,0.14955653]
[1723347023320,0.00765388,61424.0,61423.0,0.14955653]
[1723347023874,0.488383,61427.0,61426.0,0.00444243]
[1723347024313,0.04877405,61430.0,61429.0,0.00444243]
[1723347024314,0.53713305,61430.0,61429.0,0.00444243]
[1723347024538,0.913932,61430.0,61429.0,0.00444243]
[1723347025067,0.96270605,61430.0,61429.0,0.00444243]
[1723347025272,0.63713305,61430.0,61429.0,0.00444243]
[1723347025571,0.262786,61430.0,61429.0,0.00444243]
[1723347025774,0.162784,61431.0,61430.0,0.00444243]
[1723347026028,0.488352,61431.0,61430.0,0.00444243]
[1723347026923,0.53710905,61433.0,61432.0,0.00444243]
[1723347027122,0.63710905,61433.0,61432.0,0.00444243]
[1723347028138,0.63712449,61433.0,61432.0,0.00444243]
[1723347028567,0.04878949,61433.0,61432.0,0.08644243]
[1723347028725,0.04878949,61435.0,61434.0,0.00444243]
[1723347028934,0.21155949,61437.0,61436.0,0.00444243]
[1723347029380,0.86263149,61437.0,61434.0,0.00444243]
[1723347029587,0.48832,61435.0,61434.0,0.00444243]
[1723347029840,0.162773,61435.0,61434.0,0.00444243]
[1723347030435,0.48832,61435.0,61434.0,0.00444243]
[1723347031034,0.002,61437.0,61436.0,0.65552643]
[1723347031150,0.002,61437.0,61436.0,1.48185435]
[1723347031364,0.002,61437.0,61436.0,1.59703563]
[1723347031564,0.002,61437.0,61436.0,1.61703563]
[1723347031806,0.000831,61452.0,61451.0,0.55483543]
[1723347032007,0.000831,61452.0,61451.0,0.63683543]
[1723347032201,0.000831,61452.0,61451.0,1.45157435]
[1723347032568,0.000831,61452.0,61451.0,1.46157435]
[1723347032782,0.000831,61452.0,61451.0,1.59671072]
[1723347032989,0.000831,61452.0,61451.0,1.58671072]
[1723347033374,0.000831,61452.0,61451.0,1.45157435]
[1723347033810,0.000831,61452.0,61451.0,1.59970824]